[Event "Titled Tuesday Blitz January 10 Late 2023"]
[White "De Arruda, Leandro Formes"]
[Black "Kozin, Yuri"]
[WhiteFideId "22722009"]
[BlackFideId "4129920"]
[WhiteElo "1980"]
[BlackElo "2251"]
[Result "1-0"]
[Round "04"]
[TimeControl "180+2"]
[Date "2023.01.10"]
[WhiteClock "0:00:19"]
[BlackClock "0:00:55"]

1. d4 {[%clk 0:00:00]}  d5 {[%clk 0:00:00]} 2. Nf3 {[%clk 0:03:00]}  Nf6 {[%clk 0:03:00]} 3. e3 {[%clk 0:03:01]}  c5 {[%clk 0:03:00]} 4. c3 {[%clk 0:03:01]}  cxd4 {[%clk 0:02:58]} 5. exd4 {[%clk 0:03:01]}  Nc6 {[%clk 0:02:55]} 6. Be2 {[%clk 0:03:01]}  Qc7 {[%clk 0:02:55]} 7. O-O {[%clk 0:02:58]}  Bg4 {[%clk 0:02:55]} 8. Re1 {[%clk 0:02:59]}  e6 {[%clk 0:02:55]} 9. Ne5 {[%clk 0:02:58]}  Nxe5 {[%clk 0:02:55]} 10. dxe5 {[%clk 0:02:58]}  Bxe2 {[%clk 0:02:39]} 11. Qxe2 {[%clk 0:02:52]}  Nd7 {[%clk 0:02:39]} 12. Nd2 {[%clk 0:02:48]}  Be7 {[%clk 0:02:40]} 13. Nb3 {[%clk 0:02:35]}  O-O {[%clk 0:02:38]} 14. Nd4 {[%clk 0:02:33]}  a5 {[%clk 0:02:38]} 15. f4 {[%clk 0:02:26]}  Nc5 {[%clk 0:02:33]} 16. f5 {[%clk 0:02:20]}  exf5 {[%clk 0:02:13]} 17. Nxf5 {[%clk 0:02:15]}  Ne6 {[%clk 0:02:01]} 18. Qg4 {[%clk 0:02:16]}  Kh8 {[%clk 0:02:00]} 19. Kh1 {[%clk 0:01:58]}  b5 {[%clk 0:01:56]} 20. Re3 {[%clk 0:01:40]}  Qc4 {[%clk 0:01:56]} 21. Qxc4 {[%clk 0:01:37]}  dxc4 {[%clk 0:01:48]} 22. Nxe7 {[%clk 0:01:16]}  Rad8 {[%clk 0:01:48]} 23. Re1 {[%clk 0:01:16]}  Rd3 {[%clk 0:01:48]} 24. Be3 {[%clk 0:01:13]}  Rfd8 {[%clk 0:01:36]} 25. Nc6 {[%clk 0:01:10]}  R8d5 {[%clk 0:01:34]} 26. Bd4 {[%clk 0:01:06]}  b4 {[%clk 0:01:32]} 27. Ne7 {[%clk 0:00:42]}  Rd7 {[%clk 0:01:30]} 28. Nc6 {[%clk 0:00:36]}  Rd2 {[%clk 0:01:24]} 29. Rab1 {[%clk 0:00:34]}  Nf4 {[%clk 0:01:18]} 30. Be3 {[%clk 0:00:23]}  Rxg2 {[%clk 0:01:02]} 31. Bxf4 {[%clk 0:00:20]}  g5 {[%clk 0:00:55]} 32. Kxg2 {[%clk 0:00:19]} 1-0


[Site "https://www.chess.com"]

[Event "Titled Tuesday Blitz January 10 Late 2023"]
[White "Jovic, Stanoje"]
[Black "Dylag, Emilia"]
[WhiteFideId "905020"]
[BlackFideId "21805172"]
[WhiteElo "2075"]
[BlackElo "2095"]
[Result "0-1"]
[Round "04"]
[TimeControl "180+2"]
[Date "2023.01.10"]
[WhiteClock "0:00:48"]
[BlackClock "0:01:24"]

1. c4 {[%clk 0:00:00]}  e6 {[%clk 0:00:00]} 2. g3 {[%clk 0:02:55]}  Nf6 {[%clk 0:02:53]} 3. Bg2 {[%clk 0:02:54]}  d5 {[%clk 0:02:53]} 4. Nf3 {[%clk 0:02:54]}  Bd6 {[%clk 0:02:54]} 5. O-O {[%clk 0:02:53]}  h6 {[%clk 0:02:52]} 6. b3 {[%clk 0:02:52]}  O-O {[%clk 0:02:52]} 7. Bb2 {[%clk 0:02:51]}  c5 {[%clk 0:02:51]} 8. cxd5 {[%clk 0:02:51]}  Nxd5 {[%clk 0:02:51]} 9. Nc3 {[%clk 0:02:50]}  b6 {[%clk 0:02:51]} 10. Rc1 {[%clk 0:02:46]}  Bb7 {[%clk 0:02:46]} 11. Qc2 {[%clk 0:02:39]}  Nd7 {[%clk 0:02:41]} 12. Qb1 {[%clk 0:02:39]}  Rc8 {[%clk 0:02:32]} 13. Rfd1 {[%clk 0:02:37]}  Qe7 {[%clk 0:02:23]} 14. Nb5 {[%clk 0:02:32]}  Bb8 {[%clk 0:02:22]} 15. Qa1 {[%clk 0:02:21]}  e5 {[%clk 0:02:21]} 16. Bh3 {[%clk 0:02:08]}  f5 {[%clk 0:02:14]} 17. Nh4 {[%clk 0:01:58]}  Qg5 {[%clk 0:02:13]} 18. e4 {[%clk 0:01:44]}  Ne7 {[%clk 0:01:52]} 19. exf5 {[%clk 0:01:40]}  Nxf5 {[%clk 0:01:50]} 20. Nxf5 {[%clk 0:01:28]}  Rxf5 {[%clk 0:01:44]} 21. d4 {[%clk 0:01:24]}  Rcf8 {[%clk 0:01:40]} 22. Rc2 {[%clk 0:01:06]}  exd4 {[%clk 0:01:33]} 23. Bc1 {[%clk 0:00:48]}  Qh5 {[%clk 0:01:24]} 0-1


[Site "https://www.chess.com"]

[Event "Titled Tuesday Blitz January 10 Late 2023"]
[White "Martinez Reyes, Pedro Ramon"]
[Black "Skurikhin, Dmitrij"]
[WhiteFideId "3901807"]
[BlackFideId "4161297"]
[WhiteElo "2376"]
[BlackElo "2297"]
[Result "0-1"]
[Round "04"]
[TimeControl "180+2"]
[Date "2023.01.10"]
[WhiteClock "0:00:47"]
[BlackClock "0:00:09"]

1. Nc3 {[%clk 0:00:00]}  e5 {[%clk 0:00:00]} 2. Nf3 {[%clk 0:02:56]}  Nc6 {[%clk 0:02:58]} 3. d3 {[%clk 0:02:56]}  d5 {[%clk 0:02:58]} 4. g3 {[%clk 0:02:55]}  d4 {[%clk 0:02:57]} 5. Nb1 {[%clk 0:02:55]}  Bg4 {[%clk 0:02:56]} 6. Bg2 {[%clk 0:02:52]}  Nf6 {[%clk 0:02:54]} 7. c3 {[%clk 0:02:52]}  Bc5 {[%clk 0:02:54]} 8. b4 {[%clk 0:02:52]}  Bd6 {[%clk 0:02:50]} 9. b5 {[%clk 0:02:51]}  Ne7 {[%clk 0:02:41]} 10. cxd4 {[%clk 0:02:47]}  exd4 {[%clk 0:02:40]} 11. O-O {[%clk 0:02:48]}  O-O {[%clk 0:02:40]} 12. Bb2 {[%clk 0:02:48]}  c5 {[%clk 0:02:31]} 13. bxc6 {[%clk 0:02:48]}  Nxc6 {[%clk 0:02:29]} 14. Nbd2 {[%clk 0:02:48]}  Re8 {[%clk 0:02:29]} 15. Re1 {[%clk 0:02:45]}  Bb4 {[%clk 0:02:26]} 16. h3 {[%clk 0:02:45]}  Bxf3 {[%clk 0:02:22]} 17. Bxf3 {[%clk 0:02:34]}  Qd7 {[%clk 0:02:03]} 18. Bg2 {[%clk 0:02:31]}  Nd5 {[%clk 0:02:03]} 19. Bxd5 {[%clk 0:02:24]}  Qxd5 {[%clk 0:02:02]} 20. Rf1 {[%clk 0:02:20]}  Bxd2 {[%clk 0:02:01]} 21. Qxd2 {[%clk 0:02:20]}  Qh5 {[%clk 0:01:51]} 22. Qf4 {[%clk 0:02:20]}  Rad8 {[%clk 0:01:50]} 23. e4 {[%clk 0:01:31]}  Qxh3 {[%clk 0:01:35]} 24. Rad1 {[%clk 0:01:16]}  Re6 {[%clk 0:01:20]} 25. Qh4 {[%clk 0:01:11]}  Qxh4 {[%clk 0:01:12]} 26. gxh4 {[%clk 0:01:12]}  Rg6+ {[%clk 0:01:04]} 27. Kh2 {[%clk 0:01:12]}  Ne5 {[%clk 0:00:56]} 28. f3 {[%clk 0:01:12]}  Ra6 {[%clk 0:00:55]} 29. a3 {[%clk 0:01:09]}  Rb6 {[%clk 0:00:44]} 30. Rd2 {[%clk 0:01:07]}  Rb3 {[%clk 0:00:44]} 31. f4 {[%clk 0:01:00]}  Nxd3 {[%clk 0:00:42]} 32. Ba1 {[%clk 0:01:00]}  h5 {[%clk 0:00:41]} 33. f5 {[%clk 0:01:00]}  Ne5 {[%clk 0:00:33]} 34. Kg2 {[%clk 0:00:59]}  Nc4 {[%clk 0:00:29]} 35. Rxd4 {[%clk 0:00:53]}  Ne3+ {[%clk 0:00:21]} 36. Kg1 {[%clk 0:00:46]}  Rxd4 {[%clk 0:00:20]} 37. Rc1 {[%clk 0:00:44]}  Rc4 {[%clk 0:00:20]} 38. Re1 {[%clk 0:00:44]}  Nc2 {[%clk 0:00:18]} 39. Rc1 {[%clk 0:00:43]}  Ne3 {[%clk 0:00:18]} 40. Re1 {[%clk 0:00:43]}  Rxe4 {[%clk 0:00:17]} 41. f6 {[%clk 0:00:43]}  gxf6 {[%clk 0:00:17]} 42. Bxf6 {[%clk 0:00:43]}  Rf4 {[%clk 0:00:09]} 43. Bg5 {[%clk 0:00:42]}  Rf1+ {[%clk 0:00:08]} 44. Rxf1 {[%clk 0:00:41]}  Nxf1 {[%clk 0:00:08]} 45. a4 {[%clk 0:00:41]}  Nd2 {[%clk 0:00:09]} 46. Kf2 {[%clk 0:00:41]}  Ne4+ {[%clk 0:00:08]} 47. Ke2 {[%clk 0:00:42]}  Nxg5 {[%clk 0:00:08]} 48. hxg5 {[%clk 0:00:42]}  Rb4 {[%clk 0:00:09]} 49. g6 {[%clk 0:00:42]}  fxg6 {[%clk 0:00:10]} 50. a5 {[%clk 0:00:43]}  Ra4 {[%clk 0:00:10]} 51. a6 {[%clk 0:00:44]}  bxa6 {[%clk 0:00:10]} 52. Kf3 {[%clk 0:00:45]}  Rg4 {[%clk 0:00:10]} 53. Ke3 {[%clk 0:00:46]}  a5 {[%clk 0:00:08]} 54. Kd3 {[%clk 0:00:46]}  Kg7 {[%clk 0:00:09]} 55. Kc3 {[%clk 0:00:47]} 0-1


[Site "https://www.chess.com"]

[Event "Titled Tuesday Blitz January 10 Late 2023"]
[White "Tyagi, Kushan"]
[Black "Belenkaya, Dina"]
[WhiteFideId "2040069"]
[BlackFideId "24142654"]
[WhiteElo "2060"]
[BlackElo "2267"]
[Result "1-0"]
[Round "04"]
[TimeControl "180+2"]
[Date "2023.01.10"]
[WhiteClock "0:00:38"]
[BlackClock "0:00:03"]

1. d4 {[%clk 0:00:00]}  Nf6 {[%clk 0:00:00]} 2. c4 {[%clk 0:03:00]}  g6 {[%clk 0:02:59]} 3. Nc3 {[%clk 0:03:01]}  Bg7 {[%clk 0:02:57]} 4. e4 {[%clk 0:03:00]}  d6 {[%clk 0:02:55]} 5. Nge2 {[%clk 0:03:00]}  O-O {[%clk 0:02:53]} 6. f3 {[%clk 0:03:01]}  Nbd7 {[%clk 0:02:53]} 7. Be3 {[%clk 0:03:01]}  e5 {[%clk 0:02:53]} 8. d5 {[%clk 0:03:01]}  a5 {[%clk 0:02:49]} 9. g4 {[%clk 0:02:59]}  Qe7 {[%clk 0:02:49]} 10. Ng3 {[%clk 0:02:59]}  c6 {[%clk 0:02:47]} 11. Qd2 {[%clk 0:02:57]}  Rd8 {[%clk 0:02:40]} 12. h4 {[%clk 0:02:55]}  Nc5 {[%clk 0:02:30]} 13. Be2 {[%clk 0:02:54]}  Ne8 {[%clk 0:02:11]} 14. h5 {[%clk 0:02:38]}  f5 {[%clk 0:02:00]} 15. gxf5 {[%clk 0:02:35]}  gxf5 {[%clk 0:01:44]} 16. exf5 {[%clk 0:02:15]}  Bf6 {[%clk 0:01:45]} 17. O-O-O {[%clk 0:02:07]}  Kh8 {[%clk 0:01:29]} 18. h6 {[%clk 0:01:56]}  Nc7 {[%clk 0:01:28]} 19. Nce4 {[%clk 0:01:51]}  Nxe4 {[%clk 0:01:12]} 20. fxe4 {[%clk 0:01:48]}  cxd5 {[%clk 0:00:54]} 21. cxd5 {[%clk 0:01:47]}  Rg8 {[%clk 0:00:53]} 22. Nh5 {[%clk 0:01:47]}  Bd7 {[%clk 0:00:47]} 23. Rdg1 {[%clk 0:01:43]}  Nb5 {[%clk 0:00:47]} 24. Kb1 {[%clk 0:01:38]}  Nd4 {[%clk 0:00:31]} 25. Nxf6 {[%clk 0:01:16]}  Qxf6 {[%clk 0:00:28]} 26. Bh5 {[%clk 0:01:13]}  Ba4 {[%clk 0:00:29]} 27. Bg5 {[%clk 0:01:05]}  Bc2+ {[%clk 0:00:20]} 28. Ka1 {[%clk 0:01:02]}  Qf8 {[%clk 0:00:11]} 29. f6 {[%clk 0:00:59]}  Bxe4 {[%clk 0:00:11]} 30. f7 {[%clk 0:00:53]}  Rxg5 {[%clk 0:00:10]} 31. Qxg5 {[%clk 0:00:51]}  Nc2+ {[%clk 0:00:09]} 32. Kb1 {[%clk 0:00:48]}  Ne3+ {[%clk 0:00:06]} 33. Ka1 {[%clk 0:00:44]}  Nc2+ {[%clk 0:00:02]} 34. Kb1 {[%clk 0:00:42]}  Ne3+ {[%clk 0:00:02]} 35. Kc1 {[%clk 0:00:42]}  Qc8+ {[%clk 0:00:01]} 36. Kd2 {[%clk 0:00:40]}  Qc2+ {[%clk 0:00:02]} 37. Kxe3 {[%clk 0:00:40]}  Qd3+ {[%clk 0:00:03]} 38. Kf2 {[%clk 0:00:40]}  Qd4+ {[%clk 0:00:03]} 39. Kg3 {[%clk 0:00:40]}  Qd3+ {[%clk 0:00:04]} 40. Kh4 {[%clk 0:00:39]}  Qg3+ {[%clk 0:00:03]} 41. Qxg3 {[%clk 0:00:38]} 1-0


[Site "https://www.chess.com"]

[Event "Titled Tuesday Blitz January 10 Late 2023"]
[White "Kabilov, Amin"]
[Black "Khandelwal, Ankush"]
[WhiteFideId "14700859"]
[BlackFideId "413470"]
[WhiteElo "2207"]
[BlackElo "2205"]
[Result "0-1"]
[Round "04"]
[TimeControl "180+2"]
[Date "2023.01.10"]
[WhiteClock "0:00:26"]
[BlackClock "0:02:00"]

1. e4 {[%clk 0:00:00]}  c5 {[%clk 0:00:00]} 2. Nf3 {[%clk 0:03:00]}  d6 {[%clk 0:03:00]} 3. a3 {[%clk 0:03:00]}  Nf6 {[%clk 0:03:00]} 4. Nc3 {[%clk 0:03:00]}  Nc6 {[%clk 0:02:59]} 5. b4 {[%clk 0:03:00]}  cxb4 {[%clk 0:02:50]} 6. axb4 {[%clk 0:02:59]}  Nxb4 {[%clk 0:02:49]} 7. Ba3 {[%clk 0:02:59]}  Nc6 {[%clk 0:02:49]} 8. h3 {[%clk 0:02:59]}  g6 {[%clk 0:02:48]} 9. Bc4 {[%clk 0:02:39]}  Bg7 {[%clk 0:02:47]} 10. O-O {[%clk 0:02:37]}  O-O {[%clk 0:02:46]} 11. Re1 {[%clk 0:02:37]}  Ne5 {[%clk 0:02:41]} 12. Nxe5 {[%clk 0:02:02]}  dxe5 {[%clk 0:02:38]} 13. d3 {[%clk 0:02:01]}  Nh5 {[%clk 0:02:39]} 14. Nd5 {[%clk 0:02:00]}  Re8 {[%clk 0:02:37]} 15. Bb5 {[%clk 0:01:57]}  Bd7 {[%clk 0:02:37]} 16. Qb1 {[%clk 0:01:25]}  Nf4 {[%clk 0:02:36]} 17. Bc4 {[%clk 0:01:10]}  b5 {[%clk 0:02:29]} 18. Ba2 {[%clk 0:00:44]}  a5 {[%clk 0:02:17]} 19. Bc5 {[%clk 0:00:36]}  b4 {[%clk 0:02:16]} 20. Nb6 {[%clk 0:00:30]}  Ra6 {[%clk 0:02:09]} 21. Bc4 {[%clk 0:00:26]}  Rxb6 {[%clk 0:02:01]} 22. Qb3 {[%clk 0:00:26]}  Rf6 {[%clk 0:02:00]} 0-1


[Site "https://www.chess.com"]

[Event "Titled Tuesday Blitz January 10 Late 2023"]
[White "Necromon"]
[Black "Atanasov, Radislav"]
[BlackFideId "2901471"]
[WhiteElo "2454"]
[BlackElo "2025"]
[Result "0-1"]
[Round "04"]
[TimeControl "180+2"]
[Date "2023.01.10"]
[WhiteClock "0:00:57"]
[BlackClock "0:01:12"]

1. Nf3 {[%clk 0:00:00]}  Nf6 {[%clk 0:00:00]} 2. g3 {[%clk 0:02:56]}  g6 {[%clk 0:02:57]} 3. Bg2 {[%clk 0:02:56]}  Bg7 {[%clk 0:02:57]} 4. O-O {[%clk 0:02:57]}  O-O {[%clk 0:02:57]} 5. b3 {[%clk 0:02:58]}  d6 {[%clk 0:02:58]} 6. Bb2 {[%clk 0:02:58]}  e5 {[%clk 0:02:57]} 7. d3 {[%clk 0:02:59]}  Nc6 {[%clk 0:02:57]} 8. c4 {[%clk 0:02:59]}  h6 {[%clk 0:02:57]} 9. Nc3 {[%clk 0:03:00]}  Be6 {[%clk 0:02:56]} 10. e4 {[%clk 0:03:00]}  Qd7 {[%clk 0:02:56]} 11. Re1 {[%clk 0:03:00]}  Bh3 {[%clk 0:02:56]} 12. Bh1 {[%clk 0:02:58]}  Ng4 {[%clk 0:02:54]} 13. Nd5 {[%clk 0:02:58]}  f5 {[%clk 0:02:53]} 14. Ne3 {[%clk 0:02:56]}  fxe4 {[%clk 0:02:52]} 15. dxe4 {[%clk 0:02:24]}  Nd4 {[%clk 0:02:45]} 16. Nxd4 {[%clk 0:02:22]}  Nxf2 {[%clk 0:02:21]} 17. Qd2 {[%clk 0:01:42]}  exd4 {[%clk 0:02:06]} 18. Bxd4 {[%clk 0:01:41]}  Rae8 {[%clk 0:02:02]} 19. Bxg7 {[%clk 0:01:40]}  Qxg7 {[%clk 0:01:49]} 20. Nd5 {[%clk 0:01:31]}  Nxe4 {[%clk 0:01:43]} 21. Bxe4 {[%clk 0:01:09]}  Rxe4 {[%clk 0:01:34]} 22. Rxe4 {[%clk 0:01:08]}  Qxa1+ {[%clk 0:01:34]} 23. Re1 {[%clk 0:01:07]}  Qe5 {[%clk 0:01:33]} 24. Nf4 {[%clk 0:01:08]}  Qc5+ {[%clk 0:01:26]} 25. Qe3 {[%clk 0:00:58]}  Re8 {[%clk 0:01:18]} 26. Qxc5 {[%clk 0:00:58]}  Rxe1+ {[%clk 0:01:12]} 27. Kf2 {[%clk 0:00:57]}  Rf1+ {[%clk 0:01:11]} 28. Ke2 {[%clk 0:00:57]}  dxc5 {[%clk 0:01:12]} 29. Nxh3 {[%clk 0:00:57]}  Rh1 {[%clk 0:01:12]} 0-1


[Site "https://www.chess.com"]

[Event "Titled Tuesday Blitz January 10 Late 2023"]
[White "Malka, Samuel"]
[Black "Sabar, Ethmane Daouda"]
[WhiteFideId "20643675"]
[BlackFideId "19600097"]
[WhiteElo "2165"]
[BlackElo "2040"]
[Result "1-0"]
[Round "04"]
[TimeControl "180+2"]
[Date "2023.01.10"]
[WhiteClock "0:00:10"]
[BlackClock "0:00:06"]

1. d4 {[%clk 0:00:00]}  d5 {[%clk 0:00:00]} 2. c4 {[%clk 0:03:00]}  e6 {[%clk 0:02:59]} 3. Nf3 {[%clk 0:03:00]}  c6 {[%clk 0:02:58]} 4. Qc2 {[%clk 0:03:00]}  f5 {[%clk 0:02:59]} 5. g3 {[%clk 0:02:59]}  Nf6 {[%clk 0:02:54]} 6. Bg2 {[%clk 0:02:58]}  Bd6 {[%clk 0:02:54]} 7. O-O {[%clk 0:02:59]}  O-O {[%clk 0:02:54]} 8. Nbd2 {[%clk 0:02:59]}  Nbd7 {[%clk 0:02:54]} 9. Ne1 {[%clk 0:02:59]}  Qe8 {[%clk 0:02:45]} 10. Nd3 {[%clk 0:02:54]}  Qh5 {[%clk 0:02:36]} 11. Nf3 {[%clk 0:02:48]}  Ne4 {[%clk 0:02:16]} 12. Bf4 {[%clk 0:02:48]}  Ndf6 {[%clk 0:02:10]} 13. Bxd6 {[%clk 0:02:46]}  Nxd6 {[%clk 0:02:03]} 14. Nf4 {[%clk 0:02:39]}  Qh6 {[%clk 0:02:04]} 15. Ne5 {[%clk 0:02:40]}  g5 {[%clk 0:01:53]} 16. Nfd3 {[%clk 0:02:19]}  Bd7 {[%clk 0:01:47]} 17. b4 {[%clk 0:02:18]}  Be8 {[%clk 0:01:23]} 18. f3 {[%clk 0:02:16]}  f4 {[%clk 0:01:18]} 19. Nc5 {[%clk 0:02:07]}  Nf5 {[%clk 0:01:07]} 20. g4 {[%clk 0:02:01]}  Ne3 {[%clk 0:01:00]} 21. Qc3 {[%clk 0:01:41]}  Nxf1 {[%clk 0:00:59]} 22. Bxf1 {[%clk 0:01:29]}  Bf7 {[%clk 0:00:53]} 23. Nxb7 {[%clk 0:01:30]}  Ne8 {[%clk 0:00:40]} 24. Nxc6 {[%clk 0:01:25]}  Qg7 {[%clk 0:00:21]} 25. Ne5 {[%clk 0:01:16]}  h5 {[%clk 0:00:19]} 26. Nc5 {[%clk 0:01:14]}  hxg4 {[%clk 0:00:18]} 27. fxg4 {[%clk 0:01:09]}  Nf6 {[%clk 0:00:17]} 28. Bg2 {[%clk 0:01:10]}  Bg6 {[%clk 0:00:17]} 29. Nxe6 {[%clk 0:01:09]}  Qh7 {[%clk 0:00:17]} 30. Nxf8 {[%clk 0:01:07]}  Rxf8 {[%clk 0:00:17]} 31. cxd5 {[%clk 0:01:06]}  Be4 {[%clk 0:00:18]} 32. Rd1 {[%clk 0:00:57]}  Nxd5 {[%clk 0:00:17]} 33. Qc4 {[%clk 0:00:41]}  Rd8 {[%clk 0:00:15]} 34. Nf3 {[%clk 0:00:22]}  Kh8 {[%clk 0:00:09]} 35. Qc5 {[%clk 0:00:18]}  Ne3 {[%clk 0:00:07]} 36. Nxg5 {[%clk 0:00:16]}  Qg6 {[%clk 0:00:06]} 37. Bxe4 {[%clk 0:00:12]}  Qh6 {[%clk 0:00:06]} 38. Nf7+ {[%clk 0:00:10]} 1-0


[Site "https://www.chess.com"]

[Event "Titled Tuesday Blitz January 10 Late 2023"]
[White "Herman, Daniel"]
[Black "Bulgurlu, Okan"]
[WhiteFideId "30935008"]
[BlackFideId "6352316"]
[WhiteElo "1956"]
[BlackElo "1908"]
[Result "1-0"]
[Round "04"]
[TimeControl "180+2"]
[Date "2023.01.10"]
[WhiteClock "0:00:34"]
[BlackClock "0:00:04"]

1. Nf3 {[%clk 0:00:00]}  d5 {[%clk 0:00:00]} 2. c4 {[%clk 0:03:00]}  c6 {[%clk 0:02:56]} 3. e3 {[%clk 0:03:00]}  Nf6 {[%clk 0:02:56]} 4. b3 {[%clk 0:02:59]}  Bf5 {[%clk 0:02:52]} 5. Bb2 {[%clk 0:02:59]}  e6 {[%clk 0:02:42]} 6. d3 {[%clk 0:02:58]}  Bb4+ {[%clk 0:02:42]} 7. Nc3 {[%clk 0:02:39]}  dxc4 {[%clk 0:02:38]} 8. bxc4 {[%clk 0:02:38]}  Qa5 {[%clk 0:02:36]} 9. Qb3 {[%clk 0:02:36]}  Nbd7 {[%clk 0:02:34]} 10. a3 {[%clk 0:02:33]}  Be7 {[%clk 0:02:17]} 11. Be2 {[%clk 0:02:26]}  Nc5 {[%clk 0:01:46]} 12. Qc2 {[%clk 0:02:26]}  Rd8 {[%clk 0:01:41]} 13. e4 {[%clk 0:02:26]}  Nfxe4 {[%clk 0:01:41]} 14. dxe4 {[%clk 0:02:22]}  Bxe4 {[%clk 0:01:23]} 15. Qc1 {[%clk 0:02:23]}  Nb3 {[%clk 0:01:24]} 16. Qe3 {[%clk 0:02:04]}  Bxf3 {[%clk 0:01:13]} 17. Bxf3 {[%clk 0:01:58]}  Bg5 {[%clk 0:00:47]} 18. Qe2 {[%clk 0:01:52]}  Bd2+ {[%clk 0:00:47]} 19. Kf1 {[%clk 0:01:40]}  Nxa1 {[%clk 0:00:46]} 20. Ne4 {[%clk 0:01:33]}  Nb3 {[%clk 0:00:36]} 21. Bxg7 {[%clk 0:01:33]}  Rg8 {[%clk 0:00:34]} 22. Nf6+ {[%clk 0:01:28]}  Ke7 {[%clk 0:00:31]} 23. Nxg8+ {[%clk 0:01:28]}  Rxg8 {[%clk 0:00:32]} 24. Qe5 {[%clk 0:01:28]}  Rxg7 {[%clk 0:00:33]} 25. Qxg7 {[%clk 0:01:19]}  Qf5 {[%clk 0:00:20]} 26. Qb2 {[%clk 0:01:14]}  Qd3+ {[%clk 0:00:20]} 27. Be2 {[%clk 0:00:59]}  Qc3 {[%clk 0:00:02]} 28. Qxc3 {[%clk 0:00:59]}  Bxc3 {[%clk 0:00:01]} 29. g3 {[%clk 0:00:58]}  Nd4 {[%clk 0:00:02]} 30. Bd3 {[%clk 0:00:52]}  e5 {[%clk 0:00:03]} 31. Bxh7 {[%clk 0:00:48]}  f5 {[%clk 0:00:02]} 32. h4 {[%clk 0:00:46]}  e4 {[%clk 0:00:03]} 33. h5 {[%clk 0:00:46]}  Kf6 {[%clk 0:00:03]} 34. h6 {[%clk 0:00:45]}  Kf7 {[%clk 0:00:04]} 35. g4 {[%clk 0:00:45]}  fxg4 {[%clk 0:00:03]} 36. Bxe4 {[%clk 0:00:44]}  Ne6 {[%clk 0:00:02]} 37. h7 {[%clk 0:00:44]}  Bh8 {[%clk 0:00:03]} 38. Kg2 {[%clk 0:00:43]}  Ng5 {[%clk 0:00:04]} 39. Bd3 {[%clk 0:00:41]}  Kf6 {[%clk 0:00:04]} 40. Kg3 {[%clk 0:00:39]}  Kg7 {[%clk 0:00:05]} 41. Kxg4 {[%clk 0:00:38]}  Ne6 {[%clk 0:00:05]} 42. Kf5 {[%clk 0:00:38]}  Nc5 {[%clk 0:00:06]} 43. Bc2 {[%clk 0:00:37]}  b5 {[%clk 0:00:06]} 44. cxb5 {[%clk 0:00:36]}  cxb5 {[%clk 0:00:06]} 45. Ke5 {[%clk 0:00:36]}  Nd7+ {[%clk 0:00:07]} 46. Kd6 {[%clk 0:00:35]}  Nf6 {[%clk 0:00:05]} 47. Rg1+ {[%clk 0:00:35]}  Kh6 {[%clk 0:00:05]} 48. Rg6+ {[%clk 0:00:35]}  Kh5 {[%clk 0:00:04]} 49. Rg8 {[%clk 0:00:34]} 1-0


[Site "https://www.chess.com"]

[Event "Titled Tuesday Blitz January 10 Late 2023"]
[White "Delaere, Jeroen"]
[Black "Gasparyan, David"]
[WhiteFideId "204129"]
[BlackFideId "13311980"]
[WhiteElo "2104"]
[BlackElo "2142"]
[Result "0-1"]
[Round "04"]
[TimeControl "180+2"]
[Date "2023.01.10"]
[WhiteClock "0:00:04"]
[BlackClock "0:00:21"]

1. d4 {[%clk 0:00:00]}  g6 {[%clk 0:00:00]} 2. c4 {[%clk 0:03:00]}  Bg7 {[%clk 0:02:55]} 3. Nc3 {[%clk 0:02:58]}  Nf6 {[%clk 0:02:56]} 4. e4 {[%clk 0:02:57]}  d6 {[%clk 0:02:51]} 5. Nf3 {[%clk 0:02:55]}  O-O {[%clk 0:02:52]} 6. Be2 {[%clk 0:02:53]}  c5 {[%clk 0:02:52]} 7. d5 {[%clk 0:02:52]}  e6 {[%clk 0:02:52]} 8. O-O {[%clk 0:02:50]}  e5 {[%clk 0:02:51]} 9. Bg5 {[%clk 0:02:48]}  h6 {[%clk 0:02:50]} 10. Bh4 {[%clk 0:02:42]}  Nbd7 {[%clk 0:02:47]} 11. Nd2 {[%clk 0:02:39]}  a6 {[%clk 0:02:44]} 12. a3 {[%clk 0:02:37]}  Qe8 {[%clk 0:02:42]} 13. b4 {[%clk 0:02:31]}  Nh7 {[%clk 0:02:34]} 14. Nb3 {[%clk 0:02:28]}  b6 {[%clk 0:02:30]} 15. bxc5 {[%clk 0:02:23]}  bxc5 {[%clk 0:02:29]} 16. Na5 {[%clk 0:02:18]}  f5 {[%clk 0:02:24]} 17. f3 {[%clk 0:02:13]}  g5 {[%clk 0:02:19]} 18. Bf2 {[%clk 0:02:11]}  f4 {[%clk 0:02:15]} 19. Rb1 {[%clk 0:02:08]}  Qg6 {[%clk 0:02:15]} 20. Na4 {[%clk 0:02:01]}  h5 {[%clk 0:02:05]} 21. h3 {[%clk 0:01:59]}  Rf7 {[%clk 0:01:51]} 22. Nb6 {[%clk 0:01:49]}  Nxb6 {[%clk 0:01:39]} 23. Rxb6 {[%clk 0:01:45]}  g4 {[%clk 0:01:33]} 24. fxg4 {[%clk 0:01:43]}  hxg4 {[%clk 0:01:26]} 25. Bxg4 {[%clk 0:01:37]}  Bxg4 {[%clk 0:01:19]} 26. Qxg4 {[%clk 0:01:33]}  Qxg4 {[%clk 0:01:03]} 27. hxg4 {[%clk 0:01:29]}  Bf8 {[%clk 0:01:03]} 28. Rfb1 {[%clk 0:01:28]}  Ng5 {[%clk 0:01:03]} 29. Re1 {[%clk 0:01:11]}  f3 {[%clk 0:01:01]} 30. Bh4 {[%clk 0:00:59]}  Nh7 {[%clk 0:01:00]} 31. g5 {[%clk 0:00:50]}  Rf4 {[%clk 0:00:44]} 32. g6 {[%clk 0:00:45]}  Nf6 {[%clk 0:00:38]} 33. gxf3 {[%clk 0:00:35]}  Rxf3 {[%clk 0:00:33]} 34. Bxf6 {[%clk 0:00:32]}  Rxf6 {[%clk 0:00:31]} 35. Re2 {[%clk 0:00:30]}  Rxg6+ {[%clk 0:00:32]} 36. Rg2 {[%clk 0:00:22]}  Rxg2+ {[%clk 0:00:28]} 37. Kxg2 {[%clk 0:00:21]}  Kf7 {[%clk 0:00:28]} 38. Nc6 {[%clk 0:00:20]}  Bh6 {[%clk 0:00:23]} 39. Rb8 {[%clk 0:00:19]}  Rxb8 {[%clk 0:00:20]} 40. Nxb8 {[%clk 0:00:17]}  a5 {[%clk 0:00:20]} 41. Nc6 {[%clk 0:00:15]}  a4 {[%clk 0:00:21]} 42. Nd8+ {[%clk 0:00:15]}  Ke8 {[%clk 0:00:21]} 43. Nb7 {[%clk 0:00:13]}  Kd7 {[%clk 0:00:21]} 44. Kf3 {[%clk 0:00:12]}  Bc1 {[%clk 0:00:21]} 45. Kg4 {[%clk 0:00:10]}  Bd2 {[%clk 0:00:21]} 46. Kf5 {[%clk 0:00:06]}  Kc7 {[%clk 0:00:20]} 47. Ke6 {[%clk 0:00:04]}  Kxb7 {[%clk 0:00:21]} 0-1


[Site "https://www.chess.com"]